Workbook

Sheet ورقة1
B1: المطلوب تساوى مجموع العمود G من G25:G4 مع مجموع الصف من B26:F26 داخل الخلية G26 وكذلك حاصل ضرب b26*c3 يساوى المجموع فى c26 ضرب b26*d3 يساوى المجموع فى d26 ضرب b26*e3 يساوى المجموع فى e26 ضرب b26*f3 يساوى المجموع فى f26 والجمع من b26:f26 = المجموع فى g26
C3: 0.12 | D3: 0.0125 | E3: 0.03 | F3: 0.01 | G3: المجموع
B4: 1379.03 | C4: =ROUND($B4*$C$3,2) -> 165.48 | D4: =ROUND($B4*$D$3,2) -> 17.24 | E4: =ROUND($B4*$E$3,2) -> 41.37 | F4: =ROUND($B4*$F$3,2) -> 13.79 | G4: =SUM(B4:F4) -> 1616.91
B5: 1379.03 | C5: =ROUND($B5*$C$3,2) -> 165.48 | D5: =ROUND($B5*$D$3,2) -> 17.24 | E5: =ROUND($B5*$E$3,2) -> 41.37 | F5: =ROUND($B5*$F$3,2) -> 13.79 | G5: =SUM(B5:F5) -> 1616.91
B6: 4486.66 | C6: 538.4 | D6: 56.08 | E6: 134.6 | F6: 44.87 | G6: 5260.61
B7: 1306.44 | C7: 156.77 | D7: 16.33 | E7: 39.19 | F7: 13.06 | G7: 1531.79
B8: 1306.44 | C8: 156.77 | D8: 16.33 | E8: 39.19 | F8: 13.06 | G8: 1531.79
B9: 1306.44 | C9: 156.77 | D9: 16.33 | E9: 39.19 | F9: 13.06 | G9: 1531.79
B10: 1146.76 | C10: 137.61 | D10: 14.33 | E10: 34.4 | F10: 11.47 | G10: 1344.57
B11: 1146.76 | C11: 137.61 | D11: 14.33 | E11: 34.4 | F11: 11.47 | G11: 1344.57
B12: 1306.44 | C12: 156.77 | D12: 16.33 | E12: 39.19 | F12: 13.06 | G12: 1531.79
B13: 1306.44 | C13: 156.77 | D13: 16.33 | E13: 39.19 | F13: 13.06 | G13: 1531.79
B14: 1306.44 | C14: 156.77 | D14: 16.33 | E14: 39.19 | F14: 13.06 | G14: 1531.79
B15: 1306.44 | C15: 156.77 | D15: 16.33 | E15: 39.19 | F15: 13.06 | G15: 1531.79
B16: 2558.14 | C16: 306.98 | D16: 31.98 | E16: 76.74 | F16: 25.58 | G16: 2999.42
B17: 1846.12 | C17: 221.53 | D17: 23.08 | E17: 55.38 | F17: 18.46 | G17: 2164.57
B18: 1845.72 | C18: 221.49 | D18: 23.07 | E18: 55.37 | F18: 18.46 | G18: 2164.11
B19: 1857.92 | C19: 222.95 | D19: 23.22 | E19: 55.74 | F19: 18.58 | G19: 2178.41
B20: 1306.44 | C20: 156.77 | D20: 16.33 | E20: 39.19 | F20: 13.06 | G20: 1531.79
B21: 1146.76 | C21: 137.61 | D21: 14.33 | E21: 34.4 | F21: 11.47 | G21: 1344.57
B22: 1852.61 | C22: 222.31 | D22: 23.16 | E22: 55.58 | F22: 18.53 | G22: 2172.19
B23: 1306.44 | C23: 156.77 | D23: 16.33 | E23: 39.19 | F23: 13.06 | G23: 1531.79
B24: 2653.17 | C24: 318.38 | D24: 33.16 | E24: 79.6 | F24: 26.53 | G24: 3110.84
B25: 1146.76 | C25: 137.61 | D25: 14.33 | E25: 34.4 | F25: 11.47 | G25: 1344.57
B26: =ROUND(SUM(B4:B25),2) -> 36203.4 | C26: =SUM(C4:C25) -> 4344.37 | D26: =SUM(D4:D25) -> 452.52 | E26: 1086.06 | F26: 362.01 | G26: =SUM(B26:F26) -> 42448.36
B28: 36203.4 | C28: =$B$26*C3 -> 4344.408 | D28: =$B$26*D3 -> 452.5425 | E28: 1086.102 | F28: 362.034 | G28: =SUM(B28:F28) -> 42448.4865

Sheet ورقة2

Sheet ورقة3
